[Event "Live Chess"]
[Site "Chess.com"]
[Date "2023.05.21"]
[Round "-"]
[White "Pablo_dmp"]
[Black "ChessTWSS"]
[Result "0-1"]
[WhiteElo "1859"]
[BlackElo "1673"]
[TimeControl "300"]
[EndTime "7:14:08 PDT"]
[Termination "ChessTWSS won by checkmate"]

1. e4 {[%clk 0:04:59.3]} 1... c5 {[%clk 0:04:58.1]} 2. a3 {[%clk 0:04:57.9]}
2... Nc6 {[%clk 0:04:51]} 3. b4 {[%clk 0:04:56.8]} 3... e6 {[%clk 0:04:45.9]} 4.
Nf3 {[%clk 0:04:43.4]} 4... d5 {[%clk 0:04:39.3]} 5. exd5 {[%clk 0:04:41.2]}
5... exd5 {[%clk 0:04:36.3]} 6. Bb5 {[%clk 0:04:38.6]} 6... Bd7 {[%clk 0:04:27]}
7. O-O {[%clk 0:04:35.4]} 7... Nf6 {[%clk 0:04:22.9]} 8. Bb2 {[%clk 0:04:30.5]}
8... Bd6 {[%clk 0:04:16]} 9. Re1+ {[%clk 0:04:28.7]} 9... Be6 {[%clk 0:04:10.5]}
10. Ng5 {[%clk 0:04:27.7]} 10... O-O {[%clk 0:04:04.4]} 11. Nxe6 {[%clk
0:04:26.1]} 11... fxe6 {[%clk 0:04:00]} 12. Rxe6 {[%clk 0:04:26]} 12... Ne4
{[%clk 0:03:53.6]} 13. d3 {[%clk 0:04:17.5]} 13... Qh4 {[%clk 0:03:42.2]} 14. g3
{[%clk 0:04:08.4]} 14... Rxf2 {[%clk 0:03:32.4]} 15. gxh4 {[%clk 0:04:04.5]}
15... Bxh2+ {[%clk 0:03:27.4]} 16. Kh1 {[%clk 0:04:01.9]} 16... Ng3# {[%clk
0:03:23.9]} 0-1

[Event "Live Chess"]
[Site "Chess.com"]
[Date "2023.05.21"]
[Round "-"]
[White "Dhaydon19"]
[Black "BearFromUkraine"]
[Result "1-0"]
[WhiteElo "2701"]
[BlackElo "1073"]
[TimeControl "300"]
[EndTime "7:14:24 PDT"]
[Termination "Dhaydon19 won by resignation"]

1. d4 {[%clk 0:04:55.5]} 1... d5 {[%clk 0:04:58.3]} 2. Nf3 {[%clk 0:04:54.1]}
2... Nc6 {[%clk 0:04:56.6]} 3. Bf4 {[%clk 0:04:53.3]} 3... Nf6 {[%clk
0:04:53.1]} 4. Nc3 {[%clk 0:04:52.4]} 4... a6 {[%clk 0:04:50.8]} 5. e3 {[%clk
0:04:51.2]} 5... e6 {[%clk 0:04:49]} 6. h3 {[%clk 0:04:50.4]} 6... Bd6 {[%clk
0:04:48.1]} 7. Bd3 {[%clk 0:04:48.7]} 7... Bxf4 {[%clk 0:04:44.4]} 8. exf4
{[%clk 0:04:48]} 8... O-O {[%clk 0:04:43.2]} 9. Qd2 {[%clk 0:04:47.1]} 9... Bd7
{[%clk 0:04:38.2]} 10. Ne2 {[%clk 0:04:45.4]} 10... Re8 {[%clk 0:04:31.1]} 11.
c3 {[%clk 0:04:44.3]} 11... Ne7 {[%clk 0:04:24.4]} 12. g4 {[%clk 0:04:42.7]}
12... b6 {[%clk 0:04:16.7]} 13. Ng3 {[%clk 0:04:39.3]} 13... c5 {[%clk
0:04:14.7]} 14. g5 {[%clk 0:04:35.1]} 14... Ne4 {[%clk 0:04:13.1]} 15. Nxe4
{[%clk 0:04:33.7]} 15... dxe4 {[%clk 0:04:12.9]} 16. Bxe4 {[%clk 0:04:32.7]}
16... cxd4 {[%clk 0:04:12.6]} 17. Nxd4 {[%clk 0:04:29.9]} 17... Nf5 {[%clk
0:04:07.2]} 18. O-O-O {[%clk 0:04:27.8]} 18... Nxd4 {[%clk 0:04:02.5]} 19. Bxa8
{[%clk 0:04:25.8]} 1-0

[Event "Live Chess"]
[Site "Chess.com"]
[Date "2023.05.21"]
[Round "-"]
[White "BillythekidFellowes"]
[Black "Leonid_Starozhilov"]
[Result "0-1"]
[WhiteElo "2088"]
[BlackElo "2625"]
[TimeControl "300"]
[EndTime "7:14:26 PDT"]
[Termination "Leonid_Starozhilov won by resignation"]

1. e4 {[%clk 0:04:56.6]} 1... g6 {[%clk 0:04:53.6]} 2. d4 {[%clk 0:04:52.4]}
2... Bg7 {[%clk 0:04:52.5]} 3. Nc3 {[%clk 0:04:45.8]} 3... d6 {[%clk 0:04:51.6]}
4. Be3 {[%clk 0:04:41.5]} 4... a6 {[%clk 0:04:50]} 5. Nf3 {[%clk 0:04:38.5]}
5... b5 {[%clk 0:04:48.8]} 6. Bd3 {[%clk 0:04:37.4]} 6... Bb7 {[%clk 0:04:47.3]}
7. O-O {[%clk 0:04:36.5]} 7... e6 {[%clk 0:04:46.1]} 8. Bg5 {[%clk 0:04:33.5]}
8... Ne7 {[%clk 0:04:44.4]} 9. Re1 {[%clk 0:04:30.8]} 9... h6 {[%clk 0:04:43.2]}
10. Bh4 {[%clk 0:04:28.3]} 10... Nd7 {[%clk 0:04:42.7]} 11. d5 {[%clk 0:04:21]}
11... e5 {[%clk 0:04:41.3]} 12. Nd2 {[%clk 0:04:19.9]} 12... O-O {[%clk
0:04:37.8]} 13. Ne2 {[%clk 0:04:15.9]} 13... c6 {[%clk 0:04:31.7]} 14. c4 {[%clk
0:04:14.1]} 14... cxd5 {[%clk 0:04:28.3]} 15. cxd5 {[%clk 0:04:12.1]} 15... f5
{[%clk 0:04:24.9]} 16. f4 {[%clk 0:04:04]} 16... Nc5 {[%clk 0:04:17.4]} 17. Bc2
{[%clk 0:04:02.5]} 17... g5 {[%clk 0:04:10.4]} 18. fxg5 {[%clk 0:04:01.4]} 18...
Ng6 {[%clk 0:04:09]} 19. gxh6 {[%clk 0:03:57.6]} 19... Qxh4 {[%clk 0:04:03]} 20.
hxg7 {[%clk 0:03:56.1]} 20... Kxg7 {[%clk 0:03:59.5]} 21. exf5 {[%clk
0:03:54.3]} 21... Nf4 {[%clk 0:03:46.9]} 22. Nxf4 {[%clk 0:03:51.2]} 22... Qxf4
{[%clk 0:03:44.2]} 23. Ne4 {[%clk 0:03:38.8]} 23... Qxf5 {[%clk 0:03:22.5]} 24.
Nxd6 {[%clk 0:03:15.9]} 24... Qf2+ {[%clk 0:03:06.5]} 25. Kh1 {[%clk 0:03:12.4]}
25... Rf4 {[%clk 0:03:05.7]} 26. Nxb7 {[%clk 0:02:39]} 26... Rh8 {[%clk
0:02:51.8]} 27. Qe2 {[%clk 0:02:26.3]} 27... Rxh2+ {[%clk 0:02:49.8]} 0-1

[Event "Live Chess"]
[Site "Chess.com"]
[Date "2023.05.21"]
[Round "-"]
[White "LaupMiths"]
[Black "Vedant-1411"]
[Result "1-0"]
[WhiteElo "1812"]
[BlackElo "876"]
[TimeControl "300"]
[EndTime "7:14:28 PDT"]
[Termination "LaupMiths won by resignation"]

1. d4 {[%clk 0:04:57.2]} 1... d5 {[%clk 0:04:58.7]} 2. c4 {[%clk 0:04:55.5]}
2... Nc6 {[%clk 0:04:58.1]} 3. Nf3 {[%clk 0:04:51.2]} 3... dxc4 {[%clk
0:04:56.7]} 4. e4 {[%clk 0:04:46.5]} 4... Nf6 {[%clk 0:04:56.3]} 5. Nc3 {[%clk
0:04:44.1]} 5... Nxe4 {[%clk 0:04:54.8]} 6. Nxe4 {[%clk 0:04:42.3]} 6... f5
{[%clk 0:04:54.5]} 7. Nc3 {[%clk 0:04:37.5]} 7... a6 {[%clk 0:04:50.8]} 8. Bxc4
{[%clk 0:04:35.6]} 8... b5 {[%clk 0:04:50.5]} 9. Bb3 {[%clk 0:04:33]} 9... a5
{[%clk 0:04:48.3]} 10. O-O {[%clk 0:04:30.3]} 10... a4 {[%clk 0:04:47.8]} 11.
Bc2 {[%clk 0:04:28.7]} 11... e6 {[%clk 0:04:44.1]} 12. Nxb5 {[%clk 0:04:19.6]}
12... Bd6 {[%clk 0:04:43.7]} 13. Nxd6+ {[%clk 0:04:17.8]} 13... Qxd6 {[%clk
0:04:41.4]} 14. Bxa4 {[%clk 0:04:04.3]} 14... O-O {[%clk 0:04:40]} 15. Be3
{[%clk 0:03:59.5]} 15... Ba6 {[%clk 0:04:34.4]} 16. Re1 {[%clk 0:03:56.6]} 16...
Ne7 {[%clk 0:04:31.5]} 17. Bb3 {[%clk 0:03:45.9]} 17... Rf6 {[%clk 0:04:17.3]}
18. Ne5 {[%clk 0:03:42.6]} 18... Rh6 {[%clk 0:04:13.4]} 19. Bxh6 {[%clk
0:03:40.7]} 1-0

[Event "Live Chess"]
[Site "Chess.com"]
[Date "2023.05.21"]
[Round "-"]
[White "PiotrD11"]
[Black "Inglaterra"]
[Result "0-1"]
[WhiteElo "1369"]
[BlackElo "2050"]
[TimeControl "300"]
[EndTime "7:14:38 PDT"]
[Termination "Inglaterra won by resignation"]

1. e4 {[%clk 0:04:59.3]} 1... e5 {[%clk 0:04:58.2]} 2. Nf3 {[%clk 0:04:57.6]}
2... Nf6 {[%clk 0:04:52.4]} 3. Nxe5 {[%clk 0:04:50.7]} 3... d6 {[%clk
0:04:48.9]} 4. Nf3 {[%clk 0:04:47.3]} 4... Nxe4 {[%clk 0:04:48.4]} 5. d4 {[%clk
0:04:36.7]} 5... d5 {[%clk 0:04:46.7]} 6. Bd3 {[%clk 0:04:30.9]} 6... Bd6 {[%clk
0:04:18]} 7. O-O {[%clk 0:04:27.4]} 7... O-O {[%clk 0:04:15.1]} 8. Nbd2 {[%clk
0:04:20.6]} 8... Nxd2 {[%clk 0:04:10.8]} 9. Bxd2 {[%clk 0:04:17.4]} 9... Bg4
{[%clk 0:04:09.4]} 10. h3 {[%clk 0:04:11.6]} 10... Bh5 {[%clk 0:04:07.1]} 11.
Be2 {[%clk 0:04:05.1]} 11... Nd7 {[%clk 0:04:04.8]} 12. Nh2 {[%clk 0:03:53]}
12... Bxe2 {[%clk 0:04:02.2]} 13. Qxe2 {[%clk 0:03:52.5]} 13... Qh4 {[%clk
0:03:57.2]} 14. Qg4 {[%clk 0:03:40.6]} 14... Qxg4 {[%clk 0:03:49.4]} 15. Nxg4
{[%clk 0:03:40.5]} 15... Rae8 {[%clk 0:03:47]} 16. Rae1 {[%clk 0:03:37.4]} 16...
f5 {[%clk 0:03:39.8]} 17. Nh2 {[%clk 0:03:23.5]} 17... Nf6 {[%clk 0:03:36.9]}
18. c3 {[%clk 0:03:16.4]} 18... Ne4 {[%clk 0:03:26.8]} 19. Bc1 {[%clk
0:03:08.8]} 19... Kf7 {[%clk 0:03:15.2]} 20. Nf3 {[%clk 0:03:07.7]} 20... h6
{[%clk 0:03:11.9]} 21. Nd2 {[%clk 0:03:00.4]} 21... g5 {[%clk 0:03:07.9]} 22.
Nxe4 {[%clk 0:02:56.7]} 22... fxe4 {[%clk 0:03:03.1]} 23. f3 {[%clk 0:02:51.7]}
23... Kg6 {[%clk 0:02:47.6]} 24. fxe4 {[%clk 0:02:48.9]} 24... Rxf1+ {[%clk
0:02:44.1]} 25. Kxf1 {[%clk 0:02:45.4]} 25... dxe4 {[%clk 0:02:39.1]} 26. g4
{[%clk 0:02:43.3]} 26... Bf4 {[%clk 0:02:33.7]} 27. Be3 {[%clk 0:02:37.9]} 27...
Rf8 {[%clk 0:02:29]} 28. Kg2 {[%clk 0:02:29.7]} 28... h5 {[%clk 0:02:24.3]} 29.
Bxf4 {[%clk 0:02:26.5]} 29... Rxf4 {[%clk 0:02:22.4]} 30. Kg3 {[%clk 0:02:22.6]}
30... h4+ {[%clk 0:02:08.8]} 31. Kg2 {[%clk 0:02:21.5]} 31... Kf6 {[%clk
0:02:06.3]} 32. Re3 {[%clk 0:02:15.2]} 32... Ke6 {[%clk 0:02:03.8]} 33. c4
{[%clk 0:02:13.3]} 33... b6 {[%clk 0:01:56.6]} 34. b4 {[%clk 0:02:12]} 34... Kd6
{[%clk 0:01:43]} 35. Ra3 {[%clk 0:02:04.4]} 35... e3 {[%clk 0:01:35.6]} 36. Rxe3
{[%clk 0:01:54.1]} 36... Rxd4 {[%clk 0:01:33.3]} 37. Re2 {[%clk 0:01:20.1]}
37... Rxc4 {[%clk 0:01:22.8]} 38. Rd2+ {[%clk 0:01:15.6]} 38... Kc6 {[%clk
0:01:17.9]} 39. a3 {[%clk 0:01:15.2]} 39... Rc3 {[%clk 0:01:14.8]} 40. a4 {[%clk
0:01:09.7]} 40... Rg3+ {[%clk 0:01:11.9]} 41. Kh2 {[%clk 0:01:07.3]} 41... Ra3
{[%clk 0:01:06.5]} 42. b5+ {[%clk 0:01:02.4]} 42... Kb7 {[%clk 0:01:02.9]} 43.
Rd4 {[%clk 0:01:00.7]} 43... a6 {[%clk 0:00:56.5]} 44. bxa6+ {[%clk 0:00:54.8]}
44... Kxa6 {[%clk 0:00:56.4]} 45. Re4 {[%clk 0:00:53.2]} 45... c5 {[%clk
0:00:53.2]} 46. Re5 {[%clk 0:00:46.8]} 46... c4 {[%clk 0:00:51.3]} 47. Rxg5
{[%clk 0:00:44.9]} 47... c3 {[%clk 0:00:49.9]} 48. Re5 {[%clk 0:00:43.1]} 48...
Rxa4 {[%clk 0:00:39.9]} 49. Re2 {[%clk 0:00:38.7]} 49... b5 {[%clk 0:00:35.3]}
50. g5 {[%clk 0:00:35.5]} 50... b4 {[%clk 0:00:33.3]} 51. g6 {[%clk 0:00:34.8]}
51... Kb5 {[%clk 0:00:29.2]} 52. g7 {[%clk 0:00:31.5]} 52... Ra8 {[%clk
0:00:27.8]} 53. Rg2 {[%clk 0:00:25.7]} 53... Rg8 {[%clk 0:00:25.1]} 54. Rg5+
{[%clk 0:00:17.9]} 54... Ka4 {[%clk 0:00:23.8]} 55. Rg4 {[%clk 0:00:16.2]} 55...
c2 {[%clk 0:00:21.3]} 56. Rc4 {[%clk 0:00:15.2]} 56... Kb3 {[%clk 0:00:18.4]}
57. Rc7 {[%clk 0:00:14.1]} 57... Kb2 {[%clk 0:00:17.7]} 58. Kg2 {[%clk
0:00:13.2]} 58... c1=Q {[%clk 0:00:16.8]} 59. Rxc1 {[%clk 0:00:11.8]} 59... Kxc1
{[%clk 0:00:16.7]} 0-1

[Event "Live Chess"]
[Site "Chess.com"]
[Date "2023.05.21"]
[Round "-"]
[White "Vitalii18a"]
[Black "domrobson"]
[Result "0-1"]
[WhiteElo "1128"]
[BlackElo "1756"]
[TimeControl "300"]
[EndTime "7:14:42 PDT"]
[Termination "domrobson won by resignation"]

1. e4 {[%clk 0:04:56.1]} 1... e5 {[%clk 0:04:59.5]} 2. Nf3 {[%clk 0:04:54.6]}
2... Nc6 {[%clk 0:04:59.2]} 3. Bb5 {[%clk 0:04:52.8]} 3... a6 {[%clk 0:04:57.9]}
4. Ba4 {[%clk 0:04:51.6]} 4... Nf6 {[%clk 0:04:57.4]} 5. d3 {[%clk 0:04:50.1]}
5... d6 {[%clk 0:04:55.9]} 6. c3 {[%clk 0:04:48.8]} 6... b5 {[%clk 0:04:53.8]}
7. Bc2 {[%clk 0:04:47]} 7... Bg4 {[%clk 0:04:53.5]} 8. h3 {[%clk 0:04:43.7]}
8... Bxf3 {[%clk 0:04:52.2]} 9. Qxf3 {[%clk 0:04:42.4]} 9... d5 {[%clk
0:04:51.8]} 10. exd5 {[%clk 0:04:40.9]} 10... Qxd5 {[%clk 0:04:50.7]} 11. Qxd5
{[%clk 0:04:34.6]} 11... Nxd5 {[%clk 0:04:49.3]} 12. O-O {[%clk 0:04:31.3]}
12... Be7 {[%clk 0:04:47.5]} 13. f4 {[%clk 0:04:23.5]} 13... exf4 {[%clk
0:04:45.4]} 14. Bxf4 {[%clk 0:04:22.3]} 14... Nxf4 {[%clk 0:04:44.6]} 15. Rxf4
{[%clk 0:04:21.1]} 15... O-O {[%clk 0:04:43.8]} 16. d4 {[%clk 0:04:06.1]} 16...
Bd6 {[%clk 0:04:39.7]} 17. Rf3 {[%clk 0:04:03.7]} 17... Rae8 {[%clk 0:04:26.8]}
18. Na3 {[%clk 0:04:00.7]} 18... Re2 {[%clk 0:04:22.8]} 19. Bd3 {[%clk
0:03:44.9]} 19... Rxb2 {[%clk 0:04:18.4]} 20. Raf1 {[%clk 0:03:43]} 20... Bxa3
{[%clk 0:04:16.7]} 21. Rf4 {[%clk 0:03:37.4]} 21... Rxa2 {[%clk 0:04:13.8]} 22.
Be4 {[%clk 0:03:34.6]} 22... Na5 {[%clk 0:04:09.8]} 23. Rh4 {[%clk 0:03:26.4]}
23... g6 {[%clk 0:04:08.3]} 24. Rh6 {[%clk 0:03:22.4]} 24... Nc4 {[%clk
0:04:05.7]} 25. Rf4 {[%clk 0:03:20.3]} 25... f5 {[%clk 0:04:02.5]} 26. Bd5+
{[%clk 0:03:15.2]} 26... Kg7 {[%clk 0:04:01.5]} 27. Rfh4 {[%clk 0:03:12.1]}
27... Rh8 {[%clk 0:04:00.1]} 28. g4 {[%clk 0:02:41.5]} 28... Bc1 {[%clk
0:03:54.1]} 29. Rxg6+ {[%clk 0:02:34.2]} 29... hxg6 {[%clk 0:03:52.9]} 30. Rxh8
{[%clk 0:02:28.2]} 30... Kxh8 {[%clk 0:03:52]} 31. gxf5 {[%clk 0:02:27.3]} 31...
gxf5 {[%clk 0:03:51.5]} 32. Bxc4 {[%clk 0:02:24.9]} 32... bxc4 {[%clk
0:03:50.4]} 0-1

[Event "Live Chess"]
[Site "Chess.com"]
[Date "2023.05.21"]
[Round "-"]
[White "Long1968"]
[Black "FailsGambits"]
[Result "0-1"]
[WhiteElo "956"]
[BlackElo "1330"]
[TimeControl "300"]
[EndTime "7:14:43 PDT"]
[Termination "FailsGambits won on time"]

1. e4 {[%clk 0:04:57.7]} 1... e5 {[%clk 0:04:59.4]} 2. f4 {[%clk 0:04:54.9]}
2... d6 {[%clk 0:04:53.5]} 3. Bc4 {[%clk 0:04:51.8]} 3... Nc6 {[%clk 0:04:50.1]}
4. Nf3 {[%clk 0:04:47.3]} 4... Be7 {[%clk 0:04:49.1]} 5. d4 {[%clk 0:04:37.6]}
5... exd4 {[%clk 0:04:43.3]} 6. Nxd4 {[%clk 0:04:28.5]} 6... f5 {[%clk
0:04:33.5]} 7. exf5 {[%clk 0:03:59.5]} 7... Nf6 {[%clk 0:04:31.9]} 8. Ne6 {[%clk
0:03:21.8]} 8... Bxe6 {[%clk 0:04:20.9]} 9. Bxe6 {[%clk 0:03:05.5]} 9... d5
{[%clk 0:03:55.6]} 10. c3 {[%clk 0:02:29.4]} 10... d4 {[%clk 0:03:37.3]} 11. O-O
{[%clk 0:01:42]} 11... Bc5 {[%clk 0:03:23.4]} 12. Re1 {[%clk 0:00:50.7]} 12...
dxc3+ {[%clk 0:03:12.1]} 13. Kf1 {[%clk 0:00:16.5]} 13... Qxd1 {[%clk
0:03:02.1]} 14. Rxd1 {[%clk 0:00:08.3]} 14... Nd4 {[%clk 0:02:48.9]} 0-1

[Event "Live Chess"]
[Site "Chess.com"]
[Date "2023.05.21"]
[Round "-"]
[White "Pandreq"]
[Black "WilliWeisswurst"]
[Result "0-1"]
[WhiteElo "1215"]
[BlackElo "1769"]
[TimeControl "300"]
[EndTime "7:14:45 PDT"]
[Termination "WilliWeisswurst won by checkmate"]

1. d4 {[%clk 0:04:58.1]} 1... d5 {[%clk 0:04:59.2]} 2. c4 {[%clk 0:04:55.6]}
2... c6 {[%clk 0:04:58.5]} 3. Nc3 {[%clk 0:04:54.3]} 3... Nf6 {[%clk 0:04:58]}
4. Bg5 {[%clk 0:04:51]} 4... e6 {[%clk 0:04:56.9]} 5. e3 {[%clk 0:04:49.4]} 5...
Be7 {[%clk 0:04:55.9]} 6. cxd5 {[%clk 0:04:46.3]} 6... cxd5 {[%clk 0:04:54.4]}
7. Nf3 {[%clk 0:04:42.1]} 7... O-O {[%clk 0:04:52.8]} 8. Bd3 {[%clk 0:04:36.5]}
8... a6 {[%clk 0:04:50.6]} 9. Qc2 {[%clk 0:04:32.6]} 9... h6 {[%clk 0:04:49.9]}
10. Bh4 {[%clk 0:04:25.5]} 10... Nc6 {[%clk 0:04:49.3]} 11. a3 {[%clk
0:04:17.7]} 11... b5 {[%clk 0:04:41.3]} 12. O-O {[%clk 0:04:03.5]} 12... Bd7
{[%clk 0:04:39.7]} 13. b4 {[%clk 0:03:50.5]} 13... Rc8 {[%clk 0:04:37.7]} 14.
Rac1 {[%clk 0:03:47.2]} 14... Nh7 {[%clk 0:04:27.9]} 15. Bxe7 {[%clk 0:03:38.2]}
15... Qxe7 {[%clk 0:04:27.8]} 16. Bxh7+ {[%clk 0:03:36.9]} 16... Kh8 {[%clk
0:04:26.3]} 17. Bd3 {[%clk 0:03:29.2]} 17... f6 {[%clk 0:04:12.4]} 18. Nh4
{[%clk 0:03:23.1]} 18... Be8 {[%clk 0:04:00.2]} 19. Bg6 {[%clk 0:03:19.3]} 19...
f5 {[%clk 0:03:57.1]} 20. Bxe8 {[%clk 0:02:43]} 20... Qxh4 {[%clk 0:03:55.3]}
21. Bxc6 {[%clk 0:02:36.7]} 21... Rxc6 {[%clk 0:03:54.6]} 22. Qd2 {[%clk
0:02:29.7]} 22... Rf6 {[%clk 0:03:35.6]} 23. Ne2 {[%clk 0:02:25.4]} 23... Rd6
{[%clk 0:03:31.3]} 24. Rc8+ {[%clk 0:02:06.7]} 24... Kh7 {[%clk 0:03:30.1]} 25.
Rfc1 {[%clk 0:01:57.6]} 25... Rg6 {[%clk 0:03:25.2]} 26. Nf4 {[%clk 0:01:47.8]}
26... Rg4 {[%clk 0:03:18.2]} 27. R1c7 {[%clk 0:01:36.2]} 27... Rd8 {[%clk
0:02:38.3]} 28. Rxd8 {[%clk 0:01:25.1]} 28... Qxd8 {[%clk 0:02:36.6]} 29. Nxe6
{[%clk 0:01:22.5]} 29... Qe8 {[%clk 0:02:19.8]} 30. Nc5 {[%clk 0:01:09.3]} 30...
Qg6 {[%clk 0:02:00.7]} 31. g3 {[%clk 0:01:02.5]} 31... h5 {[%clk 0:01:54.4]} 32.
Nd7 {[%clk 0:00:52.4]} 32... Qd6 {[%clk 0:01:49.5]} 33. Ra7 {[%clk 0:00:48.1]}
33... h4 {[%clk 0:01:40.7]} 34. Ne5 {[%clk 0:00:43.5]} 34... Rg5 {[%clk
0:01:35.2]} 35. Nf7 {[%clk 0:00:40.4]} 35... Qg6 {[%clk 0:01:28.8]} 36. Nxg5+
{[%clk 0:00:39]} 36... Qxg5 {[%clk 0:01:28.7]} 37. Qc2 {[%clk 0:00:27]} 37... h3
{[%clk 0:01:25.8]} 38. Qc7 {[%clk 0:00:22.6]} 38... Qg4 {[%clk 0:01:24.9]} 39.
Qf4 {[%clk 0:00:19.8]} 39... Qd1# {[%clk 0:01:23.6]} 0-1

[Event "Live Chess"]
[Site "Chess.com"]
[Date "2023.05.21"]
[Round "-"]
[White "McSlash1"]
[Black "YrrriKharkiv"]
[Result "1-0"]
[WhiteElo "2014"]
[BlackElo "2059"]
[TimeControl "300"]
[EndTime "7:14:45 PDT"]
[Termination "McSlash1 won by resignation"]

1. e4 {[%clk 0:04:59.7]} 1... e6 {[%clk 0:04:58.7]} 2. d4 {[%clk 0:04:58.8]}
2... d5 {[%clk 0:04:58.4]} 3. Nd2 {[%clk 0:04:58.5]} 3... Nf6 {[%clk 0:04:57.2]}
4. e5 {[%clk 0:04:57.6]} 4... Nfd7 {[%clk 0:04:56.6]} 5. Bd3 {[%clk 0:04:57.3]}
5... c5 {[%clk 0:04:55.8]} 6. c3 {[%clk 0:04:56.8]} 6... Nc6 {[%clk 0:04:54.3]}
7. Ngf3 {[%clk 0:04:56.3]} 7... Qb6 {[%clk 0:04:51.8]} 8. dxc5 {[%clk
0:04:54.9]} 8... Bxc5 {[%clk 0:04:47.8]} 9. Qe2 {[%clk 0:04:54]} 9... Qc7 {[%clk
0:04:38.2]} 10. Nb3 {[%clk 0:04:51.8]} 10... Be7 {[%clk 0:04:36.8]} 11. Bf4
{[%clk 0:04:50.8]} 11... g5 {[%clk 0:04:30.7]} 12. Bxg5 {[%clk 0:04:48.9]} 12...
Ncxe5 {[%clk 0:04:26]} 13. Nxe5 {[%clk 0:04:46.1]} 13... Bxg5 {[%clk 0:04:14.4]}
14. Nxd7 {[%clk 0:04:44.2]} 14... Bxd7 {[%clk 0:04:13]} 15. O-O {[%clk
0:04:42.4]} 15... O-O-O {[%clk 0:04:09]} 16. c4 {[%clk 0:04:39.2]} 16... Bc6
{[%clk 0:04:03.6]} 17. cxd5 {[%clk 0:04:36.1]} 17... Bxd5 {[%clk 0:03:52.1]} 18.
g3 {[%clk 0:04:33.8]} 18... Bc6 {[%clk 0:03:48]} 19. f4 {[%clk 0:04:28.8]} 19...
Bf6 {[%clk 0:03:44.5]} 20. Rac1 {[%clk 0:04:26.7]} 20... Kb8 {[%clk 0:03:35]}
21. Nc5 {[%clk 0:04:23.4]} 21... Bd4+ {[%clk 0:03:29.2]} 22. Rf2 {[%clk
0:04:18.9]} 22... Bxf2+ {[%clk 0:03:23.8]} 23. Qxf2 {[%clk 0:04:18.8]} 23... Qb6
{[%clk 0:03:21]} 24. Bf1 {[%clk 0:04:08.6]} 24... Rd5 {[%clk 0:03:10.2]} 25. Bg2
{[%clk 0:04:00.8]} 25... Rd6 {[%clk 0:02:56.8]} 26. Bxc6 {[%clk 0:03:57.4]}
26... Qxc6 {[%clk 0:02:43.7]} 27. b4 {[%clk 0:03:55.2]} 27... Rhd8 {[%clk
0:02:38.1]} 28. Qb2 {[%clk 0:03:36.5]} 28... Rd1+ {[%clk 0:02:24.5]} 29. Rxd1
{[%clk 0:03:27.8]} 29... Rxd1+ {[%clk 0:02:22.2]} 30. Kf2 {[%clk 0:03:27.2]}
30... Qd6 {[%clk 0:02:11.1]} 31. Qh8+ {[%clk 0:03:13.2]} 31... Kc7 {[%clk
0:02:08.9]} 32. Qxh7 {[%clk 0:03:01]} 32... Rd2+ {[%clk 0:01:46.7]} 33. Kf3
{[%clk 0:02:58.4]} 33... Qd5+ {[%clk 0:01:42]} 34. Kg4 {[%clk 0:02:55.6]} 34...
Qf5+ {[%clk 0:01:38.2]} 35. Qxf5 {[%clk 0:02:52.8]} 35... exf5+ {[%clk
0:01:37.9]} 36. Kxf5 {[%clk 0:02:45.3]} 36... Rxh2 {[%clk 0:01:37.6]} 37. a4
{[%clk 0:02:44.8]} 37... Rb2 {[%clk 0:01:33]} 38. b5 {[%clk 0:02:38.7]} 38...
Rc2 {[%clk 0:01:24.5]} 39. Nd3 {[%clk 0:02:27.7]} 39... Kd7 {[%clk 0:01:15.6]}
40. Kf6 {[%clk 0:02:21.4]} 40... Rc3 {[%clk 0:01:06]} 41. Ne5+ {[%clk
0:02:19.4]} 41... Ke8 {[%clk 0:01:05.5]} 42. g4 {[%clk 0:02:17.9]} 42... Rc7
{[%clk 0:00:59.9]} 43. f5 {[%clk 0:02:14.7]} 43... Re7 {[%clk 0:00:50.2]} 44. g5
{[%clk 0:02:08.1]} 44... a6 {[%clk 0:00:49.7]} 45. g6 {[%clk 0:02:05.6]} 45...
fxg6 {[%clk 0:00:48.3]} 46. fxg6 {[%clk 0:02:05.5]} 46... Kf8 {[%clk 0:00:36.9]}
47. Nf7 {[%clk 0:01:51.6]} 47... axb5 {[%clk 0:00:33.9]} 48. g7+ {[%clk
0:01:45.6]} 48... Kg8 {[%clk 0:00:30.2]} 49. Nh6+ {[%clk 0:01:40]} 49... Kh7
{[%clk 0:00:25.4]} 50. g8=Q+ {[%clk 0:01:39.3]} 1-0

[Event "Live Chess"]
[Site "Chess.com"]
[Date "2023.05.21"]
[Round "-"]
[White "chessfiction"]
[Black "ClassyChameleon"]
[Result "1-0"]
[WhiteElo "2307"]
[BlackElo "1083"]
[TimeControl "300"]
[EndTime "7:14:49 PDT"]
[Termination "chessfiction won by checkmate"]

1. e4 {[%clk 0:04:57]} 1... e5 {[%clk 0:04:59.3]} 2. d4 {[%clk 0:04:56.2]} 2...
f6 {[%clk 0:04:56.3]} 3. dxe5 {[%clk 0:04:54.7]} 3... f5 {[%clk 0:04:55.4]} 4.
exf5 {[%clk 0:04:53.4]} 4... d5 {[%clk 0:04:50.4]} 5. Qh5+ {[%clk 0:04:51]} 5...
Ke7 {[%clk 0:04:47.4]} 6. Bg5+ {[%clk 0:04:49.5]} 6... Kd7 {[%clk 0:04:45.2]} 7.
Bxd8 {[%clk 0:04:47.4]} 7... Kc6 {[%clk 0:04:40.5]} 8. Nc3 {[%clk 0:04:45.9]}
8... Kc5 {[%clk 0:04:40]} 9. O-O-O {[%clk 0:04:42.5]} 9... Kb4 {[%clk
0:04:37.3]} 10. Rxd5 {[%clk 0:04:41.2]} 10... Bxf5 {[%clk 0:04:33]} 11. a3#
{[%clk 0:04:41]} 1-0

[Event "Live Chess"]
[Site "Chess.com"]
[Date "2023.05.21"]
[Round "-"]
[White "Tushinskiy"]
[Black "wot-not"]
[Result "1-0"]
[WhiteElo "2203"]
[BlackElo "1551"]
[TimeControl "300"]
[EndTime "7:15:21 PDT"]
[Termination "Tushinskiy won by resignation"]

1. d4 {[%clk 0:04:57.6]} 1... e6 {[%clk 0:04:56.2]} 2. c3 {[%clk 0:04:45.3]}
2... d5 {[%clk 0:04:54.8]} 3. Nf3 {[%clk 0:04:45.1]} 3... c5 {[%clk 0:04:54.1]}
4. Bf4 {[%clk 0:04:38.2]} 4... cxd4 {[%clk 0:04:52.5]} 5. cxd4 {[%clk
0:04:38.1]} 5... Bd6 {[%clk 0:04:50.7]} 6. Bg3 {[%clk 0:04:36.9]} 6... Bxg3
{[%clk 0:04:49.4]} 7. hxg3 {[%clk 0:04:36.8]} 7... Nf6 {[%clk 0:04:48]} 8. e3
{[%clk 0:04:36]} 8... Nc6 {[%clk 0:04:46.8]} 9. Bd3 {[%clk 0:04:35.4]} 9... h6
{[%clk 0:04:44.7]} 10. Nbd2 {[%clk 0:04:34.6]} 10... Bd7 {[%clk 0:04:43.5]} 11.
a3 {[%clk 0:04:22.6]} 11... Qb6 {[%clk 0:04:41.6]} 12. b4 {[%clk 0:04:21.6]}
12... Rc8 {[%clk 0:04:36.4]} 13. O-O {[%clk 0:04:19.1]} 13... O-O {[%clk
0:04:33.4]} 14. Nb3 {[%clk 0:04:17.8]} 14... Qd8 {[%clk 0:04:22.2]} 15. Nc5
{[%clk 0:04:15.6]} 15... b6 {[%clk 0:04:20.9]} 16. Nxd7 {[%clk 0:04:12.8]} 16...
Qxd7 {[%clk 0:04:19.6]} 17. Bb5 {[%clk 0:04:11.4]} 17... Qb7 {[%clk 0:04:06.7]}
18. Qa4 {[%clk 0:04:08.3]} 18... Ne7 {[%clk 0:04:04]} 19. Ba6 {[%clk 0:04:06.2]}
19... Qd7 {[%clk 0:04:00.3]} 20. Qxd7 {[%clk 0:04:04]} 20... Nxd7 {[%clk
0:03:58.6]} 21. Bxc8 {[%clk 0:04:03.3]} 21... Rxc8 {[%clk 0:03:58]} 22. Rac1
{[%clk 0:04:03.2]} 22... Rc4 {[%clk 0:03:53]} 23. Nd2 {[%clk 0:03:57.8]} 23...
b5 {[%clk 0:03:42]} 24. Nxc4 {[%clk 0:03:54.4]} 1-0